bitfinex/quotes_SOLUSD_20250731
["timestamp","ask_amount","ask_price","bid_price","bid_amount"]
[1753972574724,7.91853581,177.18,177.16,9.92555163]
[1753972574928,5.73270981,177.24,177.14,26.0]
[1753972574929,6.34270398,177.22,177.17,41.04]
[1753972575260,4.4518973,177.21,177.17,50.96555163]
[1753972575421,0.7,177.2,177.17,41.04]
[1753972575627,0.7,177.2,177.17,50.96555163]
[1753972575825,3.74968463,177.22,177.17,41.04]
[1753972576048,0.7,177.22,177.18,9.92555163]
[1753972576249,0.7,177.21,177.17,56.60978441]
[1753972576543,5.64206725,177.24,177.17,50.96555163]
[1753972576718,10.62555163,177.2,177.18,41.04]
[1753972576920,0.7,177.2,177.18,41.04]
[1753972577358,0.7,177.19,177.18,26.0]
[1753972577524,0.7,177.19,177.16,26.0]
[1753972577724,9.92555163,177.21,177.17,41.04]
[1753972578026,0.7,177.22,177.18,9.92555163]
[1753972578241,5.64334085,177.2,177.19,41.04]
[1753972578440,0.7,177.2,177.19,41.04]
[1753972578730,9.92555163,177.22,177.19,41.04]
[1753972579054,0.7,177.21,177.19,41.04]
[1753972579245,10.62555163,177.21,177.19,41.04]
[1753972579446,9.92555163,177.22,177.19,41.04]
[1753972579641,0.7,177.23,177.19,41.04]
[1753972579848,10.62555163,177.22,177.19,41.04]
[1753972580045,0.7,177.21,177.19,41.04]
[1753972580349,16.26889248,177.2,177.19,41.04]
[1753972580548,16.26889248,177.2,177.11,0.68]
[1753972580855,0.7,177.19,177.14,9.92555163]
[1753972581035,5.64297039,177.22,177.14,9.92555163]
[1753972581036,0.7,177.22,177.18,9.92555163]
[1753972581240,9.92555163,177.23,177.19,41.02]
[1753972581443,10.62555163,177.23,177.19,41.02]
[1753972581645,0.7,177.25,177.19,50.94555163]
[1753972581853,9.92555163,177.24,177.19,50.94555163]
[1753972582230,0.7,177.23,177.19,50.94555163]
[1753972582751,5.64149985,177.26,177.19,56.58911042]
[1753972583050,9.92555163,177.24,177.19,50.94555163]
[1753972583256,10.62555163,177.23,177.19,41.02]
[1753972583478,10.62555163,177.23,177.15,25.94388397]
[1753972583479,9.92555163,177.2,177.12,16.78468397]
[1753972583629,26.0,177.25,177.11,18.44298397]
[1753972583630,9.92555163,177.14,177.13,41.02]
[1753972583947,0.7,177.16,177.13,41.02]
[1753972584162,9.92555163,177.15,177.14,41.02]
[1753972584332,6.34468545,177.16,177.14,41.02]
[1753972584533,19.75096194,177.21,177.14,41.02]
[1753972584754,0.7,177.18,177.14,41.02]
[1753972584956,0.7,177.17,177.14,41.02]
[1753972585331,9.92555163,177.15,177.14,41.02]
[1753972585630,10.62555163,177.15,177.06,2.1898]
[1753972585840,9.92555163,177.09,177.07,41.02]
[1753972586140,9.92555163,177.08,177.07,41.02]
[1753972586339,6.34697394,177.09,177.07,41.02]
[1753972586529,9.92555163,177.11,177.07,41.02]
[1753972587139,9.92555163,177.11,177.07,41.7]
[1753972587527,5.64557104,177.13,177.07,41.02]
[1753972587935,9.92555163,177.11,177.07,41.02]
[1753972588256,9.92555163,177.1,177.07,41.02]
[1753972588445,9.92555163,177.11,177.07,41.02]
[1753972588833,26.0,177.18,177.06,15.57326318]
[1753972588834,5.64429643,177.17,177.08,1.24471651]
[1753972589036,9.92555163,177.16,177.11,35.92555163]
[1753972589343,10.62555163,177.16,177.12,41.24]
[1753972589537,9.92555163,177.13,177.06,5.64775924]
[1753972589739,9.92555163,177.11,177.07,41.22]
[1753972590053,9.92555163,177.12,177.07,77.82555163]
[1753972590254,9.92555163,177.11,177.08,41.22]
[1753972590634,9.92555163,177.09,177.05,27.6233]
[1753972590854,9.92555163,177.09,177.06,41.22]
[1753972591286,9.92555163,177.07,177.0,1.6629]
[1753972591560,9.92555163,177.1,177.0,42.8829]
[1753972591561,9.92555163,177.03,177.0,42.8829]
[1753972591962,9.92555163,177.03,177.0,41.22]
[1753972592263,9.92555163,177.02,177.0,41.22]
[1753972593062,13.88805185,177.03,177.0,41.22]
[1753972593239,13.88805185,177.02,176.98,13.88805185]
[1753972593436,13.88805185,177.0,176.95,1.5791]
[1753972593668,13.88805185,176.97,176.92,12.92114059]
[1753972593967,13.88805185,176.96,176.88,0.06]
[1753972594149,13.88805185,176.96,176.91,13.88805185]
[1753972594355,13.88805185,176.96,176.91,14.56805185]
[1753972594551,19.53909233,176.96,176.91,14.56805185]
[1753972594745,0.68,177.01,176.93,13.88805185]
[1753972595065,13.88805185,176.98,176.94,41.16]
[1753972595244,13.88805185,176.97,176.94,41.16]
[1753972595568,13.88805185,176.96,176.94,41.16]
[1753972595878,14.56805185,176.95,176.91,41.16]
[1753972596050,13.88805185,176.93,176.91,41.16]
[1753972596246,19.77289417,177.01,176.92,13.88805185]
[1753972596558,5.65003672,176.99,176.91,41.16]
[1753972596760,13.88805185,177.0,176.93,0.68]
[1753972596967,6.32939833,177.01,176.93,13.88805185]
[1753972597137,13.88805185,177.0,176.95,13.88805185]
[1753972597342,13.88805185,177.02,176.95,41.56]
[1753972597673,6.32883868,177.03,176.97,13.88805185]
[1753972597844,14.56805185,177.07,176.99,42.78468397]
[1753972598044,20.2155645,177.07,177.02,13.88805185]
[1753972598250,6.32751265,177.07,177.02,13.88805185]
[1753972598449,20.2155645,177.07,177.02,13.88805185]
[1753972598841,13.88805185,177.05,177.0,41.56]
[1753972599048,13.88805185,177.01,176.96,41.54]
[1753972599258,13.88805185,177.02,176.96,41.54]
[1753972599471,0.68,177.04,176.96,41.54]
[1753972599472,13.88805185,177.03,176.98,13.88805185]
[1753972599768,13.88805185,177.03,176.98,14.56805185]
[1753972599949,13.88805185,177.02,176.98,13.88805185]
[1753972600149,0.68,177.06,176.99,13.88805185]
[1753972600466,13.88805185,177.04,176.99,13.88805185]
[1753972600672,14.56805185,177.04,176.99,13.88805185]
[1753972600871,13.88805185,177.01,176.97,26.0]
[1753972601051,13.88805185,176.98,176.93,26.0]
[1753972601367,13.88805185,176.96,176.94,41.54]
[1753972601569,13.88805185,176.96,176.91,1.5905]
[1753972601570,13.88805185,176.95,176.91,1.5905]
[1753972601750,13.88805185,176.96,176.91,62.67104405]
[1753972602068,13.88805185,176.96,176.91,63.35104405]
[1753972602244,13.88805185,176.94,176.91,41.54]
[1753972602563,13.88805185,176.96,176.91,47.19248929]
[1753972602774,13.88805185,176.96,176.91,61.76054114]
[1753972603153,13.88805185,176.96,176.92,41.52]
[1753972603355,13.88805185,176.97,176.92,56.08805185]
[1753972603558,13.88805185,176.97,176.92,55.40805185]
[1753972603766,13.88805185,176.97,176.93,0.68]
[1753972604153,13.88805185,176.97,176.92,13.88805185]
[1753972604464,13.88805185,176.96,176.93,41.5]
[1753972604663,0.68,176.96,176.93,41.5]
[1753972604961,13.88805185,176.94,176.93,41.5]
[1753972605272,6.33163332,176.94,176.93,41.5]
[1753972605452,20.21968517,176.94,176.93,41.5]
[1753972605647,20.21968517,176.94,176.89,26.0]
[1753972605855,13.88805185,176.92,176.9,41.48]
[1753972606061,0.68,176.97,176.9,41.48]
[1753972606258,0.68,176.97,176.9,42.32]
[1753972606464,13.88805185,176.95,176.9,56.20805185]
[1753972606978,13.88805185,176.93,176.91,41.64]
[1753972607161,0.68,176.95,176.91,41.64]
[1753972607162,13.88805185,176.94,176.91,41.64]
[1753972607362,13.88805185,176.93,176.91,41.64]
[1753972607555,13.88805185,176.93,176.9,41.64]
[1753972607749,13.88805185,176.94,176.9,41.64]
[1753972607957,13.88805185,176.94,176.9,55.52805185]
[1753972608261,13.88805185,176.95,176.9,56.20805185]
[1753972608472,13.88805185,176.95,176.9,42.32]
[1753972608661,13.88805185,176.94,176.9,41.64]
[1753972609185,13.88805185,176.92,176.88,0.06]
[1753972609476,13.88805185,176.91,176.89,41.6]
[1753972609680,13.88805185,176.9,176.89,41.6]
[1753972610186,14.56805185,176.9,176.89,41.6]
[1753972610475,14.56805185,176.9,176.88,0.06]
[1753972610773,14.56805185,176.89,176.88,0.06]
[1753972611167,20.22128267,176.89,176.88,0.06]
[1753972611473,13.88805185,176.89,176.88,0.06]
[1753972611664,19.54128267,176.89,176.88,0.06]
[1753972612173,20.22128267,176.89,176.88,0.06]
[1753972612880,16.19203102,176.89,176.88,0.06]
[1753972613377,26.0,176.87,176.86,0.06]
[1753972613678,35.8588002,176.87,176.86,0.06]
[1753972613975,36.5388002,176.87,176.86,0.06]
[1753972615284,42.19267027,176.87,176.86,0.06]
[1753972615577,9.8588002,176.88,176.86,0.06]
[1753972616074,9.8588002,176.87,176.86,0.06]
[1753972617277,15.51267027,176.87,176.86,0.06]
[1753972617476,16.19267027,176.87,176.86,0.06]
[1753972618278,30.32734545,176.87,176.77,42.22]
[1753972618503,9.8588002,176.79,176.77,41.54]
[1753972618672,9.8588002,176.79,176.75,33.16110817]
[1753972618863,15.51522873,176.79,176.75,2.1835]
[1753972619066,9.8588002,176.79,176.75,2.1835]
[1753972619789,9.8588002,176.81,176.77,9.8588002]
[1753972619964,9.8588002,176.81,176.76,10.5388002]
[1753972620157,5.65522469,176.83,176.77,0.68]
[1753972620379,9.8588002,176.82,176.77,10.5388002]
[1753972620688,9.8588002,176.81,176.77,10.5388002]
[1753972620982,9.8588002,176.82,176.77,10.5388002]
[1753972621193,0.68,176.87,176.81,9.8588002]
[1753972621372,5.6536187,176.88,176.83,9.8588002]
[1753972621559,9.8588002,176.87,176.82,9.8588002]
[1753972621886,9.8588002,176.83,176.79,67.52]
[1753972622060,9.8588002,176.82,176.79,67.52]
[1753972622260,0.68,176.83,176.79,41.52]
[1753972622261,10.5388002,176.83,176.79,41.52]
[1753972622487,9.8588002,176.86,176.81,9.8588002]
[1753972622790,0.68,176.85,176.79,41.52]
[1753972622971,5.65642853,176.79,176.75,1.5035]
[1753972623287,9.8588002,176.77,176.75,1.5035]
[1753972623485,6.33642853,176.79,176.72,73.8020481]
[1753972623486,9.8588002,176.76,176.74,0.06]
[1753972624066,9.8588002,176.77,176.74,0.06]
[1753972624263,9.8588002,176.79,176.75,0.65]
[1753972624473,9.8588002,176.79,176.74,15.57673717]
[1753972624878,9.8588002,176.79,176.74,16.22673717]
[1753972625089,9.8588002,176.8,176.75,10.5088002]
[1753972625297,6.35487535,176.84,176.78,9.8588002]
[1753972625496,9.8588002,176.83,176.78,9.8588002]
[1753972626192,9.8588002,176.82,176.77,77.3188002]
[1753972626371,9.8588002,176.82,176.77,83.62567197]
[1753972626578,5.65519773,176.83,176.78,9.8588002]
[1753972626889,9.8588002,176.8,176.77,67.46]
[1753972627098,0.7,176.82,176.77,41.46]
[1753972627386,5.65519773,176.83,176.77,51.9688002]
[1753972627593,15.51399793,176.83,176.77,42.11]
[1753972627895,9.8588002,176.82,176.77,51.3188002]
[1753972628069,5.65450947,176.85,176.79,9.8588002]
[1753972628271,15.51330967,176.85,176.8,9.8588002]
[1753972628796,9.8588002,176.84,176.79,11.4699002]
[1753972629006,0.7,176.84,176.76,26.0]
[1753972629172,9.8588002,176.8,176.75,43.6296]
[1753972629375,9.8588002,176.8,176.76,0.65]
[1753972629981,9.8588002,176.78,176.75,42.9796]
[1753972630179,9.8588002,176.78,176.74,26.06]
[1753972630180,9.8588002,176.77,176.74,0.06]
[1753972630396,15.51560544,176.78,176.74,0.06]
[1753972630902,9.8588002,176.75,176.74,0.06]
[1753972631317,26.0,176.72,176.65,11.5216]
[1753972631482,9.8588002,176.68,176.65,11.5216]
[1753972631677,9.8588002,176.68,176.65,1.6628]
[1753972631876,9.8588002,176.68,176.65,7.32366799]
[1753972632207,9.8588002,176.71,176.66,10.5088002]
[1753972632398,16.21697936,176.74,176.69,9.8588002]
[1753972632586,9.8588002,176.76,176.7,10.5088002]
[1753972632789,0.7,176.76,176.69,9.8588002]
[1753972632997,9.8588002,176.72,176.67,26.0]
[1753972633295,9.8588002,176.7,176.65,17.18242038]
[1753972633607,0.7,176.69,176.65,1.6628]
[1753972633816,9.8588002,176.66,176.61,0.06]
[1753972633978,9.8588002,176.62,176.61,0.06]
[1753972634679,26.7,176.68,176.61,0.06]
[1753972634880,5.65930956,176.7,176.63,9.8588002]
[1753972635095,9.8588002,176.67,176.62,9.8588002]
[1753972635312,9.8588002,176.64,176.61,0.06]
[1753972635605,9.8588002,176.63,176.61,0.06]
[1753972636200,9.8588002,176.62,176.61,0.06]
[1753972636984,15.52067314,176.62,176.61,0.06]
[1753972637519,9.8588002,176.62,176.61,0.06]
[1753972637704,16.22067314,176.62,176.61,0.06]
[1753972638311,10.5588002,176.62,176.61,0.06]
[1753972638614,26.0,176.65,176.61,0.06]
[1753972638615,9.8588002,176.65,176.61,0.06]
[1753972638804,9.8588002,176.64,176.61,0.06]
[1753972639008,9.8588002,176.63,176.61,0.06]
[1753972639485,9.8588002,176.62,176.61,0.06]
[1753972639685,10.5588002,176.62,176.61,0.06]
[1753972640592,16.22067314,176.62,176.61,0.06]
[1753972642382,33.00535711,176.62,176.61,0.06]
[1753972642698,59.00535711,176.62,176.61,0.06]
[1753972643885,16.78468397,176.61,176.6,0.06]
[1753972644089,27.34348417,176.61,176.6,0.06]
[1753972644486,10.5588002,176.61,176.6,0.06]
[1753972644685,6.36219353,176.61,176.6,0.06]
[1753972644885,16.22099373,176.61,176.6,0.06]
[1753972647339,5.66219353,176.61,176.6,0.06]
[1753972647503,9.8588002,176.62,176.6,0.06]
[1753972647810,15.51875039,176.68,176.61,11.95471955]
[1753972648119,41.51875039,176.68,176.62,10.5088002]
[1753972648424,9.8588002,176.69,176.64,9.8588002]
[1753972648624,15.51682894,176.74,176.68,9.8588002]
[1753972648927,9.8588002,176.73,176.68,10.5088002]
[1753972649129,5.65802874,176.74,176.68,0.65]
[1753972649340,9.8588002,176.74,176.69,10.5088002]
[1753972649837,5.65781218,176.75,176.7,10.5088002]
[1753972650035,15.51661238,176.75,176.7,10.5088002]
[1753972650340,5.68742366,176.76,176.71,0.65]
[1753972650636,9.8588002,176.75,176.71,0.65]
[1753972650808,9.8588002,176.73,176.68,36.5088002]
[1753972651006,9.8588002,176.71,176.66,9.8588002]
[1753972651217,9.8588002,176.7,176.65,0.65]
[1753972651413,9.8588002,176.69,176.65,0.65]
[1753972651728,9.8588002,176.69,176.64,41.36]
[1753972651729,9.8588002,176.67,176.64,41.36]
[1753972652024,9.8588002,176.66,176.62,0.65]
[1753972652402,9.8588002,176.67,176.62,0.65]
[1753972652598,6.36057387,176.67,176.61,1.5297]
[1753972652820,13.9458819,176.65,176.61,7.19187608]
[1753972653029,6.36057387,176.67,176.61,7.19187608]
[1753972653030,13.9458819,176.67,176.62,14.5958819]
[1753972653331,13.9458819,176.67,176.61,7.19187608]
[1753972653627,0.7,176.66,176.6,0.06]
[1753972653926,13.9458819,176.64,176.6,0.06]
[1753972654320,13.9458819,176.66,176.61,13.9458819]
[1753972654511,13.9458819,176.65,176.6,14.7258819]
[1753972654714,13.9458819,176.61,176.6,0.06]
[1753972654912,0.67,176.64,176.6,14.0058819]
[1753972655228,13.9458819,176.64,176.6,0.78]
[1753972655412,13.9458819,176.64,176.6,0.06]
[1753972655615,13.9458819,176.63,176.6,0.06]
[1753972656016,13.9458819,176.63,176.61,0.06]
[1753972657133,31.65995268,176.68,176.62,14.6658819]
[1753972657327,19.60583458,176.68,176.63,13.9458819]
[1753972657722,0.67,176.7,176.64,13.9458819]
[1753972658027,13.9458819,176.7,176.65,13.9458819]
[1753972658225,0.67,176.73,176.63,41.36]
[1753972658431,13.9458819,176.71,176.66,14.6658819]
[1753972658627,19.60519146,176.7,176.66,0.72]
[1753972658825,19.60519146,176.7,176.65,13.9458819]
[1753972659210,147.3,176.72,176.66,2.3508]
[1753972659432,147.3,176.72,176.7,13.9458819]
[1753972659632,0.03,176.74,176.71,13.9458819]
[1753972660229,0.03,176.74,176.69,7.76616298]
[1753972660230,13.9458819,176.73,176.69,7.2002]
[1753972660430,14.6158819,176.73,176.69,7.2002]
[1753972660637,13.9458819,176.72,176.69,7.2002]
[1753972661030,19.60462498,176.72,176.69,7.2002]
[1753972661533,13.9758819,176.74,176.69,21.1460819]
[1753972661724,0.03,176.74,176.7,13.9458819]
[1753972662140,0.03,176.74,176.73,13.9458819]
[1753972662510,0.03,176.74,176.73,14.6658819]
[1753972662836,0.03,176.74,176.73,37.10891476]
[1753972663133,0.03,176.74,176.73,20.32423079]
[1753972663836,0.03,176.74,176.73,13.9458819]
[1753972664040,0.03,176.74,176.73,0.72]
[1753972664345,0.03,176.74,176.73,13.9458819]
[1753972667527,0.03,176.74,176.72,13.9458819]
[1753972667908,0.03,176.74,176.71,46.93891657]
[1753972668110,0.03,176.74,176.72,13.9458819]
[1753972668309,13.9758819,176.74,176.71,41.28]
[1753972668726,13.9458819,176.73,176.71,41.28]
[1753972668926,13.9458819,176.72,176.68,41.26]
[1753972669318,14.6158819,176.73,176.68,55.2058819]
[1753972669631,13.9458819,176.72,176.68,41.26]
[1753972670037,13.9458819,176.72,176.68,55.2058819]
[1753972670215,14.6158819,176.73,176.68,19.60580789]
[1753972670540,13.9458819,176.73,176.68,60.84580789]
[1753972670712,13.9758819,176.74,176.69,13.9458819]
[1753972670918,0.03,176.74,176.7,14.6658819]
[1753972671340,0.03,176.74,176.71,13.9458819]
[1753972672133,0.03,176.74,176.71,5.6589893]
[1753972673039,0.03,176.74,176.71,19.6048712]
[1753972673439,0.03,176.74,176.71,13.9458819]
[1753972673816,13.9458819,176.72,176.68,41.2]
[1753972674114,13.9758819,176.74,176.7,5.65930956]
[1753972674649,0.03,176.74,176.71,13.9458819]
[1753972674813,0.67,176.73,176.69,0.56596298]
[1753972675015,9.87217346,176.7,176.67,67.2]
[1753972675425,10.54217346,176.7,176.67,67.2]
[1753972675629,0.67,176.7,176.67,67.2]
[1753972675838,10.54217346,176.7,176.67,41.2]
[1753972676148,5.66027056,176.67,176.61,1.686]
[1753972676440,9.87217346,176.66,176.61,58.42034917]
[1753972676935,9.87217346,176.65,176.61,42.886]
[1753972677142,10.54217346,176.64,176.61,42.886]
[1753972677513,9.87217346,176.62,176.61,41.26]
[1753972677716,10.54217346,176.63,176.61,0.06]
[1753972678445,9.87217346,176.64,176.61,0.06]
[1753972678628,9.87217346,176.63,176.61,0.06]
[1753972678829,0.67,176.65,176.61,0.06]
[1753972679033,9.87217346,176.63,176.61,0.06]
[1753972679420,26.0,176.68,176.61,10.65217346]
[1753972679637,9.87217346,176.64,176.61,0.06]
[1753972680648,147.3,176.71,176.64,16.78468397]
[1753972680825,147.3,176.71,176.69,9.87217346]
[1753972681145,15.56044214,176.74,176.69,9.87217346]
[1753972681346,0.03,176.74,176.71,15.53116276]
[1753972681550,0.03,176.74,176.72,9.87217346]
[1753972681843,10.54217346,176.73,176.69,6.7327]
[1753972682041,9.87217346,176.7,176.65,26.0]
[1753972682226,9.87217346,176.69,176.65,26.0]
[1753972682427,10.54217346,176.69,176.64,15.53339068]
[1753972682632,9.87217346,176.69,176.64,15.53339068]
[1753972682837,9.87217346,176.69,176.64,16.25339068]
[1753972683139,147.3,176.73,176.68,9.87217346]
[1753972683340,157.84217346,176.73,176.68,9.87217346]
[1753972683641,162.83057651,176.73,176.68,15.5320285]
[1753972683836,0.67,176.72,176.68,15.5320285]
[1753972684339,0.67,176.72,176.68,5.65985504]
[1753972684523,0.67,176.72,176.68,15.5320285]
[1753972684728,162.83053495,176.73,176.68,15.5320285]
[1753972684937,9.87217346,176.71,176.67,41.24]
[1753972685133,0.71,176.7,176.66,41.2]
[1753972685334,9.87217346,176.72,176.67,9.87217346]
[1753972685524,0.71,176.71,176.67,9.87217346]
[1753972685719,9.87217346,176.7,176.66,51.07217346]
[1753972685941,10.58217346,176.7,176.66,51.07217346]
[1753972686245,9.87217346,176.68,176.66,41.2]
[1753972686421,0.71,176.67,176.63,51.09217346]
[1753972686743,0.71,176.66,176.63,41.22]
[1753972686932,9.87217346,176.68,176.63,51.09217346]
[1753972687532,10.58217346,176.68,176.63,51.09217346]
[1753972688039,9.87217346,176.7,176.65,9.87217346]
[1753972688222,15.53151339,176.7,176.65,9.87217346]
[1753972688642,5.65909588,176.71,176.65,10.59217346]
[1753972688841,15.53126934,176.71,176.66,9.87217346]
[1753972689023,6.36909588,176.71,176.65,10.59217346]
[1753972689328,16.24126934,176.71,176.66,9.87217346]
[1753972689530,6.36909588,176.71,176.67,9.87217346]
[1753972689740,10.61217346,176.74,176.69,9.87217346]
[1753972689943,5.6583647,176.73,176.69,9.87217346]
[1753972690137,16.24053816,176.73,176.68,9.87217346]
[1753972690626,0.71,176.72,176.68,9.87217346]
[1753972690939,0.71,176.71,176.67,51.07217346]
[1753972691630,15.53053816,176.73,176.68,9.87217346]
[1753972691833,16.24053816,176.73,176.68,9.87217346]
[1753972692136,0.71,176.72,176.68,9.87217346]
[1753972692715,15.53053816,176.73,176.68,9.87217346]
[1753972692921,10.58217346,176.72,176.67,51.07217346]
[1753972693445,10.58217346,176.72,176.68,9.87217346]
[1753972693640,15.53053816,176.73,176.68,9.87217346]
[1753972693847,16.24053816,176.73,176.68,9.87217346]
[1753972694045,0.03,176.74,176.7,9.87217346]
[1753972694252,0.03,176.74,176.71,9.87217346]
[1753972694428,0.03,176.74,176.7,10.59217346]
[1753972694631,0.74,176.74,176.7,9.87217346]
[1753972694827,10.58217346,176.73,176.67,26.0]
[1753972695048,9.87217346,176.72,176.68,41.2]
[1753972695542,9.87217346,176.73,176.68,51.07217346]
[1753972695849,0.03,176.74,176.72,9.87217346]
[1753972696072,0.03,176.74,176.73,9.87217346]
[1753972696925,0.03,176.74,176.72,51.07217346]
[1753972697255,0.03,176.74,176.72,41.2]
[1753972698766,0.74,176.74,176.72,41.2]
[1753972699129,10.58217346,176.73,176.69,41.2]
[1753972699431,0.71,176.72,176.69,41.2]
[1753972699820,9.87217346,176.72,176.69,41.2]
[1753972700021,9.87217346,176.7,176.66,1.6301]
[1753972700238,15.53151144,176.7,176.66,42.8101]
[1753972700437,0.71,176.69,176.66,42.8101]
[1753972700633,9.87217346,176.7,176.66,42.8101]
[1753972700843,15.53125338,176.71,176.66,48.47064871]
[1753972701040,16.24125338,176.71,176.66,7.29064871]
[1753972701246,16.24125338,176.71,176.66,48.47064871]
[1753972701540,16.24125338,176.71,176.66,7.29064871]
[1753972701758,10.58217346,176.7,176.66,1.6301]
[1753972702554,6.36937943,176.7,176.66,1.6301]
[1753972702763,10.58217346,176.69,176.66,1.6301]
[1753972703067,9.87217346,176.7,176.66,11.50227346]
[1753972703267,9.87217346,176.71,176.66,12.22227346]
[1753972703429,0.03,176.74,176.67,10.59217346]
[1753972703636,0.03,176.74,176.71,9.87217346]
[1753972703931,0.03,176.74,176.68,1.28599501]
[1753972703932,0.03,176.74,176.7,41.2]
[1753972704143,0.03,176.74,176.7,51.07217346]
[1753972704342,9.87217346,176.75,176.7,51.07217346]
[1753972704656,9.87217346,176.76,176.71,16.25089722]
[1753972704829,9.87217346,176.77,176.72,0.72]
[1753972705152,9.87217346,176.76,176.72,0.72]
[1753972705351,9.87217346,176.74,176.7,41.2]
[1753972705557,9.87217346,176.76,176.71,0.72]
[1753972705859,9.87217346,176.76,176.72,0.72]
[1753972706548,9.87217346,176.77,176.73,0.72]
[1753972706846,9.87217346,176.77,176.72,9.87217346]
[1753972707050,9.90217346,176.74,176.7,7.0463]
[1753972707257,10.61217346,176.74,176.7,7.0463]
[1753972707445,0.74,176.74,176.7,22.57774579]
[1753972707642,0.03,176.74,176.72,9.87217346]
[1753972708035,0.03,176.74,176.73,0.72]
[1753972709257,0.03,176.74,176.7,0.72]
[1753972709258,9.90217346,176.74,176.7,0.72]
[1753972709465,9.87217346,176.72,176.69,41.18]
[1753972709764,9.87217346,176.7,176.66,8.7162]
[1753972710061,9.87217346,176.69,176.66,42.8101]
[1753972710233,9.87217346,176.7,176.66,43.5301]
[1753972710959,9.87217346,176.69,176.66,2.3501]
[1753972711163,9.87217346,176.7,176.66,2.3501]
[1753972711456,9.87217346,176.7,176.65,41.18]
[1753972711457,9.87217346,176.67,176.65,41.18]
[1753972712555,9.87217346,176.66,176.63,67.18]
[1753972712736,9.87217346,176.65,176.63,41.18]
[1753972712942,9.87217346,176.64,176.61,0.06]
[1753972713162,9.87217346,176.63,176.61,41.24]
[1753972713758,9.87217346,176.62,176.61,0.06]
[1753972713932,10.58217346,176.62,176.61,0.06]
[1753972714843,16.2440464,176.62,176.61,0.06]
[1753972715045,10.58217346,176.62,176.61,0.06]
[1753972715761,16.2440464,176.62,176.61,0.06]
[1753972716541,10.58217346,176.62,176.61,0.06]
[1753972716942,9.87217346,176.62,176.61,0.06]
[1753972718662,16.1940464,176.62,176.61,0.06]
[1753972720170,20.75229035,176.62,176.61,0.06]
[1753972720470,6.32187294,176.62,176.61,0.06]
[1753972720671,16.1940464,176.62,176.61,0.06]
[1753972721182,15.5336894,176.64,176.61,0.06]
[1753972721477,9.87217346,176.62,176.61,0.06]
[1753972722366,6.32151594,176.64,176.61,0.06]
[1753972722367,9.87217346,176.63,176.61,0.06]
[1753972723042,9.87217346,176.64,176.61,0.06]
[1753972723248,9.87217346,176.66,176.62,10.58217346]
[1753972723773,9.87217346,176.66,176.62,0.71]
[1753972724346,16.19265689,176.67,176.62,10.58217346]
[1753972724565,16.19265689,176.67,176.63,0.71]
[1753972724566,9.87217346,176.67,176.63,0.71]
[1753972724760,6.31964745,176.69,176.65,9.87217346]
[1753972724952,9.87217346,176.7,176.66,0.71]
[1753972725158,9.87217346,176.7,176.67,0.71]
[1753972725373,9.87217346,176.7,176.65,10.58217346]
[1753972725680,10.53217346,176.7,176.65,10.58217346]
[1753972725886,9.87217346,176.7,176.65,9.87217346]
[1753972726169,15.53151771,176.7,176.66,0.71]
[1753972726672,16.19151771,176.7,176.65,9.87217346]
[1753972727059,16.19151771,176.7,176.65,10.58217346]
[1753972727448,16.19151771,176.7,176.65,0.71]
[1753972727648,16.19151771,176.7,176.65,10.58217346]
[1753972728377,0.66,176.69,176.65,10.58217346]
[1753972728589,15.53151771,176.7,176.65,9.87217346]
[1753972728771,0.66,176.69,176.65,9.87217346]
[1753972728972,15.53151771,176.7,176.66,0.71]
[1753972729353,15.53151771,176.7,176.66,0.77]
[1753972729555,16.19151771,176.7,176.66,0.77]
[1753972729880,9.87217346,176.69,176.66,0.06]
[1753972730083,5.65995019,176.68,176.66,0.06]
[1753972730382,16.19212365,176.68,176.66,0.06]
[1753972731186,5.65995019,176.68,176.66,0.06]